Cogmind - Beta 16 @@@ ROGUE MODE // 2025.11.20 @ 18:53:30 Player: lvl5hm Result: Destroyed by Y-72 Warden with Quantum Rifle Performance ------------- Evolutions (8) 4000 Regions Visited (18) 3600 Robots Destroyed (374) 1870 Value Destroyed (15549) 15549 Prototype IDs (28) 560 Alien Tech Used (1) 200 Bonus (15482) 15482 TOTAL SCORE: 41261 Bonus ------- Triggered High Security 1000 High Alert Combat Kills 5296 Follower Combat Kills 3348 Network Hubs Disabled 400 Registered with UFD 300 Met Optimus in HQ 500 Met Data Miner 300 Built Enhanced Grunts 300 A7 Reached Mainframe 300 Met R17 at Cetus 500 Met R17 at Research 2000 Acquired SGEMP 2000 Friendly Fire -762 Cogmind --------- Core Integrity 0/1450 Matter 250/300 Energy 100/100 System Corruption 17% Temperature Cool (9) Movement Core (1350) Ox26 Location -2/Research Parts ------- > --- POWER (2) -------- (None) > --- PROPULSION (4) --- (None) > --- UTILITY (12) ----- Huge Storage Unit Advanced Signal Interpreter > --- WEAPON (6) ------- (None) > --- INVENTORY (25) --- Cooled Antimatter Reactor Xenon Bombardment Thruster Xenon Bombardment Thruster Xenon Bombardment Thruster Field Propulsion Array Impulse Thruster Array Advanced Cryofiber Web Advanced Heat Sink Advanced Heat Sink Improved Energy Well (400) Improved Energy Well (400) Compact Matter Pod (150) Advanced Sensor Array Hacking Suite Hacking Suite Long-range Proton Cannon Potential Cannon Heavy Gauss Cannon Multitool SGEMP Prototype Peak State ------------ > --- POWER ------------ Cooled Antimatter Reactor Cooled Antimatter Reactor > --- PROPULSION ------- Overtuned Huge Scrapsphere Overtuned Huge Scrapsphere > --- UTILITY ---------- Scrap Suit Coolant Network Huge Storage Unit Advanced Signal Interpreter Advanced Targeting Computer Experimental Targeting Computer Advanced Force Field Long-range Tractor Beam > --- WEAPON ----------- Cooled Plasma Cannon Advanced KE Penetrator Hypervelocity Railgun Overtuned Railgun Hypervelocity Multirail Force Lance > --- INVENTORY -------- Light Neutrino Core Cooled Antimatter Reactor Cooled Antimatter Reactor Advanced Cryofiber Web Advanced Heat Sink Advanced Heat Sink Improved Energy Well Improved Energy Well Compact Matter Pod Advanced Sensor Array Advanced Recoil Stabilizer Advanced Weapon Cycler Actuator Array Improved Transmission Jammer Experimental ECM Suite Hardened Medium Armor Plating Graphene Brace Long-range Proton Cannon Potential Cannon Neutron Missile Launcher Neutron Missile Launcher Multitool SGEMP Prototype [Rating: 164] Favorites ----------- Power Makeshift Power Source Engine Makeshift Power Source Power Core Neutrino Core Reactor Quantum Reactor Propulsion Overtuned Huge Scrapsphere Treads Light Treads Leg Aluminum Leg Wheel Overtuned Huge Scrapsphere Flight Unit VTOL Module Utility Advanced Heat Sink Device Advanced Heat Sink Storage Large Storage Unit Processor Advanced Signal Interpreter Hackware Improved Hacking Suite Protection Hardened Light Armor Plating Weapon Advanced KE Penetrator Energy Gun Medium Laser Energy Cannon Cooled Plasma Cannon Ballistic Gun Advanced KE Penetrator Ballistic Cannon Slug Cannon Launcher Neutron Missile Launcher Special Weapon Multitool Impact Weapon Makeshift Hammer Slashing Weapon Mining Claw Piercing Weapon Force Lance Build | -11 -10 -10 -9 -9 -6 -6 -6 -6 -5 -5 -5 -5 -5 -5 -4 -3 -3 -2 ------- Run | Yrd Mat Sub Rec Scr Fac Low Low Dat Pro Fac Ext Cet Arc Hub Fac Res Tes Res Slots Evolved 16 | . . . . . 8 . . . . 2 . . . . 2 2 . 2 Power . | . . . . . . . . . . . . . . . . . . . Propulsion 2 | . . . . . 2 . . . . . . . . . . . . . Utility 10 | . . . . . 4 . . . . 2 . . . . 1 1 . 2 Weapon 4 | . . . . . 2 . . . . . . . . . 1 1 . . Parts Attached 247 | 9 13 12 6 19 34 3 1 . 3 22 18 7 5 8 33 22 21 11 Power 34 | 1 1 2 . 1 2 . . . . 3 5 2 . . 5 2 6 4 Engine 7 | 1 1 2 . 1 . . . . . 1 1 . . . . . . . Core 11 | . . . . . 2 . . . . 2 4 . . . 2 . 1 . Reactor 16 | . . . . . . . . . . . . 2 . . 3 2 5 4 Propulsion 28 | 2 5 1 3 4 7 . . . . . . 2 . . 4 . . . Treads 9 | 2 1 . 2 1 1 . . . . . . 2 . . . . . . Leg 10 | . 4 1 1 1 2 . . . . . . . . . 1 . . . Wheel 7 | . . . . . 4 . . . . . . . . . 3 . . . Hover . | . . . . . . . . . . . . . . . . . . . Flight 2 | . . . . 2 . . . . . . . . . . . . . . Utility 116 | 3 4 1 2 8 14 3 . . 3 14 8 2 4 5 15 12 13 5 Device 69 | 2 2 . . 3 7 2 . . 1 10 7 . 3 2 10 8 9 3 Storage 13 | 1 2 . 1 3 2 . . . . 1 . . . . 1 2 . . Processor 11 | . . . . . 2 1 . . 1 . . 1 . . 2 . 2 2 Hackware 4 | . . . . . . . . . . . . . . 2 2 . . . Protection 19 | . . 1 1 2 3 . . . 1 3 1 1 1 1 . 2 2 . Artifact . | . . . . . . . . . . . . . . . . . . . Weapon 69 | 3 3 8 1 6 11 . 1 . . 5 5 1 1 3 9 8 2 2 Energy Gun 12 | 3 1 . 1 1 2 . . . . 1 3 . . . . . . . Energy Cannon 7 | . 1 . . . 3 . . . . 1 . 1 . . . 1 . . Ballistic Gun 32 | . . 6 . 4 3 . . . . 2 1 . 1 2 8 2 1 2 Ballistic Cannon 6 | . . 1 . . . . . . . . . . . 1 . 4 . . Launcher 5 | . . . . . 1 . 1 . . 1 . . . . . 1 1 . Special Weapon 4 | . . . . 1 2 . . . . . 1 . . . . . . . Impact Weapon 1 | . . 1 . . . . . . . . . . . . . . . . Slashing Weapon 1 | . 1 . . . . . . . . . . . . . . . . . Piercing Weapon 1 | . . . . . . . . . . . . . . . 1 . . . Special Melee Weapon . | . . . . . . . . . . . . . . . . . . . Unidentified Prototypes 17 | . . . . . 1 . . . 1 1 . 2 . 1 . 2 7 2 Corrupted Parts 12 | . . . . . . . . . . 1 . 4 . 2 4 . . 1 System Corruption 75 | . . . . . . . . . . 12 . 21 . 9 25 . . 8 Parts Lost 68 | . 4 2 . . 4 . . . 1 . 4 2 . 1 17 2 6 25 Power 9 | . . . . . . . . . . . 2 . . . 3 . . 4 Propulsion 6 | . 1 1 . . 1 . . . . . . . . . 1 . . 2 Utility 23 | . 2 . . . . . . . . . 1 2 . 1 6 1 . 10 Weapon 30 | . 1 1 . . 3 . . . 1 . 1 . . . 7 1 6 9 Highest Loss Streak 13 | . 3 1 . . 2 . . . 1 . 2 2 . 1 7 1 3 13 To Critical Strikes 1 | . . . . . . . . . . . . . . . 1 . . . Average Backups 14 | 1 7 13 14 11 11 18 18 18 17 16 16 17 17 17 15 21 21 20 Power . | . . . . . . 1 1 1 . . . . 1 1 1 2 2 2 Propulsion 1 | . 3 4 2 1 1 1 1 1 1 1 1 1 1 1 2 1 . 2 Utility 5 | . . 1 1 3 6 12 12 12 12 11 9 9 7 8 5 8 12 11 Weapon 5 | . 3 7 9 4 2 3 3 3 2 3 4 6 6 6 5 8 5 3 Tool/Special . | . . . . . . . . . . . . . . . . . . . Unused Backups 61 | . 1 2 2 19 3 1 1 . . 3 . 4 . . 3 4 4 14 Power 5 | . . . . 1 . . . . . . . . . . . 2 . 2 Propulsion 12 | . 1 . . 3 1 . . . . . . 1 . . 1 . . 5 Utility 22 | . . 1 . 6 1 1 1 . . 3 . 1 . . 1 1 1 5 Weapon 20 | . . 1 2 7 1 . . . . . . 2 . . 1 1 3 2 Tool/Special 2 | . . . . 2 . . . . . . . . . . . . . . Average Slot Usage (%) 82 | . 97 99 98 81 69 78 80 63 80 82 82 65 65 79 79 78 81 62 Engine 7 | . 14 14 14 12 2 . . . . 2 1 . . . . . . . Core 1 | . . . . . 3 6 6 6 8 7 9 8 . . 4 . . . Reactor 1 | . . . . . . . . . . . . 2 11 11 4 7 8 7 Treads 12 | . 11 20 4 25 4 . . . . . . 4 11 11 3 . . . Leg 2 | . 16 7 22 . 2 . . . . . . . . . . . . . Wheel 3 | . . . . . 7 13 13 13 12 11 11 6 . . 6 7 9 7 Device 10 | . 13 7 . . 13 19 20 20 18 22 19 14 14 13 17 24 16 13 Storage 9 | . 14 14 14 12 4 6 6 6 6 5 5 5 5 5 5 4 4 4 Processor 3 | . . . . . 2 6 6 6 6 5 5 8 11 8 6 9 11 14 Protection 7 | . . 6 13 12 4 . . . . 4 7 5 3 7 7 1 3 3 Energy Gun 3 | . 23 2 2 . 8 5 6 . 6 8 6 . . . . . 1 . Energy Cannon 2 | . 2 2 . . 6 5 6 . 7 5 7 5 6 1 . . 2 . Ballistic Gun 9 | . . 16 13 7 4 8 13 7 10 6 6 2 1 14 23 9 16 4 Ballistic Cannon 2 | . . 3 10 4 . . . . . . . . . 3 . 11 2 . Impact Weapon 1 | . . 1 . 3 . . . . . . . . . . . . . . Peak Build Rating 164 | 7 10 20 20 29 82 82 80 80 89 103 102 106 123 138 147 142 164 164 Average Rating 59 | 6 8 14 19 18 55 77 79 64 83 99 98 95 109 132 127 127 154 133 On Entrance 74 | . 7 9 20 15 27 79 80 80 80 87 97 100 106 123 128 84 139 146 Avg Prop Armor Cover (%) 7 | . . . . 2 11 . . . . . . . . . . . . 7 Naked Turns 359 | . . . . 359 . . . . . . . . . . . . . . Heaviest Build 186 | 15 31 42 42 39 89 85 85 85 94 110 112 108 116 140 146 176 186 166 Greatest Support 160 | 40 40 40 40 42 46 40 40 40 40 40 40 160 160 160 160 40 40 40 Greatest Overweight (x) 29 | . 1 2 2 1 5 2 2 2 2 2 2 29 . . 4 7 4 28 Average Overweight (x) 1 | . . . 1 . 1 1 2 1 2 2 2 1 . . 1 4 4 3 Largest Inventory Capacity 25 | 8 15 15 15 15 20 20 20 20 20 20 20 20 20 20 20 25 25 25 Average Capacity 16 | 7 8 15 15 13 15 20 20 20 20 20 20 20 20 20 20 24 25 25 Most Carried 25 | 3 10 15 15 15 20 20 20 20 20 20 20 20 20 20 20 25 25 25 Average Carried 15 | 1 7 13 14 12 13 20 19 20 19 19 19 19 19 19 18 21 24 24 Final Capacity 25 | 8 15 15 15 5 20 20 20 20 20 20 20 20 20 20 20 25 25 25 Final Carried 25 | 2 9 15 15 4 20 20 20 20 19 20 20 20 20 19 16 25 24 24 Scrap Suit Usage (%) 20 | . . . . . 48 42 100 100 100 57 88 . . . 49 28 36 18 Parts Cannibalized 40 | . . . . . 2 . 1 . . 5 15 . . . 8 5 3 1 Class Distribution -------------------- 34% | Mutant 26% | Scavenger-Scrapper 18% | Derelict-Mutant 6% | Scavenger-Tank 4% | Scavenger-Mutant Dominant Class ---------------- Mutant | -10/Materials Mutant | -10/Subcaves Mutant | -9/Recycling Derelict-Mutant | -9/Scraptown Scavenger-Scrapper | -6/Factory Scavenger-Scrapper | -6/Lower Caves Scavenger-Scrapper | -6/Lower Caves Scavenger-Scrapper | -6/Data Miner Scavenger-Scrapper | -5/Proximity Caves Scavenger-Scrapper | -5/Factory Scavenger-Scrapper | -5/Extension Scavenger-Scrapper | -5/Cetus Scavenger-Mutant | -5/Archives Scavenger-Tank | -5/Hub_04(d) Scavenger-Scrapper | -4/Factory Scavenger-Executioner | -3/Research Scavenger-Scrapper | -3/Testing Scavenger-Assassin | -2/Research Resources | -11 -10 -10 -9 -9 -6 -6 -6 -6 -5 -5 -5 -5 -5 -5 -4 -3 -3 -2 ----------- Run | Yrd Mat Sub Rec Scr Fac Low Low Dat Pro Fac Ext Cet Arc Hub Fac Res Tes Res Matter Collected 12530 | 290 241 874 313 844 1051 246 55 . 372 964 656 310 140 397 2469 698 1770 840 Remotely 1468 | . . . . . 40 . . . . . . . . . 471 388 569 . Salvage Created 17929 | 235 835 467 689 63 1072 202 . . 564 1682 1274 293 493 759 3138 692 3584 1887 Parts 866 | 22 45 32 33 2 61 11 . . 21 85 62 12 24 44 162 21 141 88 Haulers Intercepted 7 | . 2 . 1 . . . . . . 1 . . . 1 . 1 . 1 Recyclers Shooed 18 | . . . 9 . 2 . . . . 3 . . . . 1 . 1 2 Parts Field Recycled . | . . . . . . . . . . . . . . . . . . . Retrieved Matter . | . . . . . . . . . . . . . . . . . . . Parts Self-Destructed 38 | . . 11 . . . 11 . . 16 . . . . . . . . . Prevented 4 | . . . . . . . . . 4 . . . . . . . . . Parts Restored . | . . . . . . . . . . . . . . . . . . . Kills | -11 -10 -10 -9 -9 -6 -6 -6 -6 -5 -5 -5 -5 -5 -5 -4 -3 -3 -2 ------- Run | Yrd Mat Sub Rec Scr Fac Low Low Dat Pro Fac Ext Cet Arc Hub Fac Res Tes Res Combat Hostiles Destroyed 248 | . 13 14 9 1 14 5 . . 12 29 25 3 2 6 41 5 45 24 Melee 4 | . . . . . . . . . . . . . . . . . . 4 Guns 149 | . 12 11 7 . 5 4 . . 4 12 10 . . 4 36 3 36 5 Cannons 32 | . . 3 2 1 2 . . . 3 8 6 . 1 2 . 2 2 . AOE 52 | . . . . . 7 . . . 4 8 8 . . . 5 . 7 13 Classes Destroyed 25 | 2 7 3 3 1 2 . . . 1 . 1 . . 1 1 1 2 . Worker 28 | . 1 . . . 1 . . . . 4 . . . 10 4 . 4 4 Builder 21 | . 1 . . . 1 . . . . 2 2 . . 4 7 . 1 3 Tunneler 10 | 9 . . . . . . . . . . . . . . 1 . . . Hauler 7 | . 2 . 1 . . . . . . 1 . . . 1 . 1 . 1 Recycler 26 | 1 2 . 4 . 3 . . . . 1 . . . . 3 1 4 7 Mechanic 1 | . . . . . . . . . . . . . . . . . 1 . Operator 14 | . 1 . . . 1 . . . . 1 1 . 9 . 1 . . . Turret 2 | . . 2 . . . . . . . . . . . . . . . . Watcher 13 | . 2 . . . . . . . . 2 2 2 . 1 3 . 1 . Swarmer 71 | . 3 3 1 . 8 3 . . 6 9 9 . . 1 9 . 1 18 Grunt 77 | . 10 . . . . . . . 3 10 7 . . 1 10 3 28 5 Duelist 3 | . . . . . . . . . 1 . . . . . 1 . 1 . Protector 3 | . . . 2 . . . . . . . . . . . 1 . . . Sentry 28 | . . . 5 . 4 . . . 1 3 5 . 2 2 5 1 . . Hunter 19 | . . . 1 . 1 2 . . . . 3 . . 1 5 . 5 1 Programmer 23 | . . . . . 1 . . . 1 7 . . . . 7 . 7 . Heavy 3 | . . . . . . . . . . . . . . 1 2 . . . Behemoth 1 | . . . . . . . . . . . . . . . 1 . . . Cetus Guard 3 | . . . . . . . . . . . . 3 . . . . . . Striker 3 | . . . . . . . . . . . . . . . . 1 2 . Alpha 7 1 | . . . . . . . . . . . . . . . . . 1 . Artisan 3 | . . 3 . . . . . . . . . . . . . . . . Subdweller 11 | . . 11 . . . . . . . . . . . . . . . . Scrapper 1 | . . . . 1 . . . . . . . . . . . . . . Scrapoid 4 | . . . . . 3 . . . . . . . . . . 1 . . Savage 1 | . . . . . . . . . . . 1 . . . . . . . Best Kill Streak 12 | 6 3 2 3 1 7 3 . . 5 11 5 2 1 12 11 4 9 8 Combat Bots Only 8 | . 2 2 2 1 5 3 . . 5 8 5 2 1 3 7 3 8 5 Max Kills in Single Turn 12 | 2 1 1 2 1 8 1 . . 2 5 5 1 1 12 6 1 2 4 Gunslinging 1 | . . . . . . . . . . . . . . . 1 . . . Exploded 5 | . . . . . 4 . . . 2 5 5 . . . 2 . 2 4 Melee 1 | . . . . . . . . . . . . . . . . . . 1 Uniques/NPCs Destroyed . | . . . . . . . . . . . . . . . . . . . Combat | -11 -10 -10 -9 -9 -6 -6 -6 -6 -5 -5 -5 -5 -5 -5 -4 -3 -3 -2 -------- Run | Yrd Mat Sub Rec Scr Fac Low Low Dat Pro Fac Ext Cet Arc Hub Fac Res Tes Res Hostile Shots Fired 1438 | . 43 62 11 29 77 11 14 . 34 69 123 14 1 35 341 41 265 268 Missed 390 | . 8 22 5 7 28 4 6 . 11 14 38 4 . 8 89 13 74 59 Hits 1048 | . 35 40 6 22 49 7 8 . 23 55 85 10 1 27 252 28 191 209 Melee 6 | . . . . . . . . . . . . . . . 4 . 2 . Projectile 1042 | . 35 40 6 22 49 7 8 . 23 55 85 10 1 27 248 28 189 209 AOE 3 | . . 3 . . . . . . . . . . . . . . . . Critical Strikes 46 | . . . . 2 . . 1 . 1 3 4 3 . 1 16 1 7 7 Part Disruptions 2 | . . . . . . . . . . . . . . . . . . 2 Damage Taken 21974 | . 698 686 50 415 1081 110 30 . 440 1173 1600 347 36 729 5933 637 3033 4976 Core 2792 | . 92 88 18 45 51 . . . 64 130 63 . . 27 429 100 234 1451 Absorbed by Shields 1048 | . . . . . . . . . . . 87 . 13 . . . 948 . Reduced by Siege Mode 93 | . . . . . . . . . . . . . . . 93 . . . Ignored by Resistances 19 | . . 19 . . . . . . . . . . . . . . . . Regen/Repaired (Parts) 903 | . 52 . . . 9 . 3 . . 127 124 . . . 384 165 29 10 Core Remaining (%) 67 | 100 . . . 2 . . . . 86 . . . . 78 62 . 74 . Volleys Fired 889 | 18 62 81 53 9 67 6 33 . 20 72 63 21 76 38 112 24 104 30 Largest 6 | 2 2 2 2 2 4 4 1 . 4 4 4 1 1 4 5 6 6 3 Hottest 329 | 100 110 110 70 120 329 252 90 . 257 284 238 105 81 152 175 269 252 106 Shots Fired 2026 | 36 126 133 83 15 108 24 34 . 69 206 217 22 76 71 416 62 264 64 Gun 1446 | 36 120 87 57 8 64 18 1 . 45 136 129 . . 35 410 34 216 50 Cannon 541 | . 6 46 26 6 39 6 33 . 21 67 86 22 76 36 . 28 38 5 Launcher 34 | . . . . . 1 . . . 3 3 2 . . . 6 . 10 9 Special 5 | . . . . 1 4 . . . . . . . . . . . . . Kinetic 1182 | . . 120 56 9 19 12 1 . 28 57 66 . . 60 410 61 233 50 Thermal 770 | 36 126 13 27 5 86 12 33 . 38 146 149 1 66 11 . . 21 . Explosive 31 | . . . . . 1 . . . . 3 2 . . . 6 . 10 9 Electromagnetic 40 | . . . . . . . . . 3 . . 21 10 . . 1 . 5 Robot Hit Streak 24 | 10 17 16 15 3 10 8 . . 7 11 12 14 7 6 24 12 22 8 Robot Miss Streak 11 | 2 7 3 11 2 4 2 1 . 4 6 5 3 5 4 8 2 5 4 Penetration Max 2 | . . . . . . . . . 1 1 1 . . 1 1 . 1 2 Secondary Targets 13 | . . . . . . . . . . . . . . 1 11 . . 1 Max Gunslinging Chain 1 | . . . . . . . . . . . . . . 1 1 . . 1 Shots Hit Robots 1110 | 24 87 66 40 7 54 13 . . 34 108 93 16 50 24 228 27 182 57 Core Hits 637 | 11 35 27 19 2 32 6 . . 16 65 49 5 22 38 129 12 119 50 Critical Kills 59 | . . 1 2 . . 2 . . . . 2 . . . 8 4 37 3 Critical Parts Destroyed 90 | . . . . 1 . . . . 1 3 5 . . 2 19 3 54 2 Critical Strikes 196 | 2 14 3 2 1 5 2 . . 3 5 14 . . 2 29 9 96 9 Burn 31 | 2 14 . . . 5 . . . 2 2 6 . . . . . . . Meltdown 1 | . . . . . . 1 . . . . . . . . . . . . Destroy 158 | . . 3 2 1 . 1 . . 1 3 8 . . 2 29 8 95 5 Blast 2 | . . . . . . . . . . . . . . . . 1 1 . Impale 4 | . . . . . . . . . . . . . . . . . . 4 Melee Attacks 98 | . 9 41 . . . . . . . . . . . . 3 3 10 32 Impact 35 | . . 35 . . . . . . . . . . . . . . . . Slashing 15 | . 9 6 . . . . . . . . . . . . . . . . Piercing 48 | . . . . . . . . . . . . . . . 3 3 10 32 Sneak Attacks 13 | . . . . . . . . . . . . . . . 1 . 4 8 Combat Hostiles . | . . . . . . . . . . . . . . . . . . . Follow-up Attacks . | . . . . . . . . . . . . . . . . . . . Damage Inflicted 42238 | 313 1091 1234 666 155 2528 318 . . 1372 5105 3912 546 1853 1942 9907 662 5796 4838 Guns 21000 | 313 1074 871 452 74 923 254 . . 751 2397 1875 . . 708 6994 337 2904 1073 Cannons 7290 | . 17 363 214 81 382 64 . . 339 1232 1276 546 1727 147 . 325 470 107 Explosions 12086 | . . . . . 1223 . . . 282 1476 761 . 126 1049 2739 . 1986 2444 Melee 1673 | . . . . . . . . . . . . . . . 174 . 436 1063 Ramming 189 | . . . . . . . . . . . . . . 38 . . . 151 Kinetic 17037 | . . 1069 465 93 285 114 . . 490 1019 1030 . . 822 6994 626 2957 1073 Thermal 11714 | 313 1091 165 201 62 1982 204 . . 600 2765 2121 . 1541 252 . . 417 . Explosive 9410 | . . . . . 261 . . . . 1250 761 . . . 2708 . 1986 2444 Electromagnetic 2215 | . . . . . . . . . 282 71 . 546 312 830 31 36 . 107 Impact . | . . . . . . . . . . . . . . . . . . . Slashing . | . . . . . . . . . . . . . . . . . . . Piercing 1673 | . . . . . . . . . . . . . . . 174 . 436 1063 Highest Corruption 30 | . 10 10 10 . 2 2 2 2 2 13 4 21 21 21 30 . 1 17 Average Corruption 9 | . 6 10 10 . 2 2 2 2 2 2 3 18 12 15 21 . 1 6 Corruption Purged 27 | . . . . . . . . . . 10 4 . 13 . . . . . Corruption Blocked . | . . . . . . . . . . . . . . . . . . . Effects 492 | . 18 134 50 . 4 6 5 1 8 11 12 14 40 41 118 . 6 24 Message Errors 111 | . 5 29 16 . . 1 2 . 1 2 2 2 7 12 25 . 2 5 Matter Fused 107 | . 5 31 6 . . 3 . 1 2 1 2 4 11 8 25 . 2 6 Heat Flow Errors 42 | . . 16 2 . 1 . . . 1 2 1 3 1 3 8 . 1 3 Energy Discharges 57 | . 2 17 8 . 1 . 1 . 2 . 1 . 7 6 8 . . 4 Parts Rejected 7 | . 2 . 1 . . . . . . . . . 1 . 2 . . 1 Parts Fused 5 | . . 2 . . . 1 . . . 1 . 1 . . . . . . Data Loss (minor) 62 | . 1 22 7 . . . 1 . . 2 2 2 7 2 13 . 1 2 Data Loss (major) 26 | . 1 9 1 . . 1 . . 1 2 . 1 4 3 2 . . 1 Misfires 26 | . 2 5 5 . 1 . 1 . 1 . 2 1 1 2 4 . . 1 Alerts 11 | . . 2 3 . . . . . . . 1 . . 2 3 . . . Misdirections 6 | . . . . . . . . . . . . . . . 6 . . . Weapon Failures 32 | . . 1 1 . 1 . . . . 1 1 . 1 3 22 . . 1 Overload Shots 1 | . . . . . . . . . . . . 1 . . . . . . Overflow Damage 865 | . . 19 6 . 133 . . . 43 97 143 . 95 20 4 6 172 127 Projectiles 225 | . . 19 6 . 32 . . . 37 30 . . 95 . . 6 . . Explosions 464 | . . . . . 101 . . . 6 67 143 . . 20 4 . 89 34 Melee 176 | . . . . . . . . . . . . . . . . . 83 93 Knockbacks 12 | . . 3 4 1 . . . . . . . . . . . 1 3 . Impact . | . . . . . . . . . . . . . . . . . . . Kinetic 10 | . . 3 2 1 . . . . . . . . . . . 1 3 . Secondary 2 | . . . 2 . . . . . . . . . . . . . . . Self-Inflicted Damage 755 | . . . . . 379 . . . . . . . . 97 137 . . 142 Shots 10 | . . . . . 5 . . . . . . . . 1 3 . . 1 Rammed 11 | . . . . . . . . . . . . . . 4 . . . 7 Targets Rammed 11 | . . . . . . . . . . . . . . 4 . . . 7 Kicked . | . . . . . . . . . . . . . . . . . . . Crushed . | . . . . . . . . . . . . . . . . . . . Highest Temperature 613 | 261 213 223 318 559 264 287 . . 613 328 200 234 248 484 429 . 154 138 Average Temperature 110 | 123 53 96 103 198 96 136 . . 164 125 106 54 42 118 120 . 97 63 Received Heat Transfer 2758 | . 192 141 . 211 78 . . . 90 300 135 24 . 123 616 133 478 237 Effects 25 | . . . . 6 . . . . 3 2 3 . . 6 5 . . . Shutdowns 5 | . . . . 1 . . . . 1 . . . . 2 1 . . . Energy Bleed 5 | . . . . . . . . . 2 . 3 . . . . . . . Interference 10 | . . . . 2 . . . . . 2 . . . 3 3 . . . Damage (minor) 2 | . . . . . . . . . . . . . . 1 1 . . . Damage (major) 3 | . . . . 3 . . . . . . . . . . . . . . Siege Activations 5 | . . . . . . . . . . . . . . . 5 . . . Total Turns 81 | . . . . . . . . . . . . . . . 81 . . . Longest Duration 26 | . . . . . . . . . . . . . . . 26 . . . Martial Activations . | . . . . . . . . . . . . . . . . . . . Shielding Activations . | . . . . . . . . . . . . . . . . . . . Robots Disrupted . | . . . . . . . . . . . . . . . . . . . Combat Hostiles . | . . . . . . . . . . . . . . . . . . . Robots Corrupted 8 | . . . . . . . . . 1 . . 3 1 1 . . . 2 Combat Hostiles 7 | . . . . . . . . . 1 . . 3 1 . . . . 2 Parts Fried 8 | . . . . . . . . . 1 . . 1 . 3 . . . 3 Impact Corruptions 2 | . . . . . . . . . . . . . . 1 . . . 1 Robots Melted 5 | . 2 . . . . 1 . . . 1 1 . . . . . . . Combat Hostiles 4 | . 1 . . . . 1 . . . 1 1 . . . . . . . Parts Melted 50 | 3 11 2 . 2 4 2 . . 2 9 10 . 2 . 2 . 1 . Heat Transferred 20981 | 1061 4255 407 566 111 2786 350 . . 1150 3562 3433 . 2350 250 . . 700 . Parts Sabotaged . | . . . . . . . . . . . . . . . . . . . Parts Stolen . | . . . . . . . . . . . . . . . . . . . Parts Stripped . | . . . . . . . . . . . . . . . . . . . Power Chain Reactions 3 | . . . . . . . . . . . . . 1 2 . . . . Alert | -11 -10 -10 -9 -9 -6 -6 -6 -6 -5 -5 -5 -5 -5 -5 -4 -3 -3 -2 ------- Run | Yrd Mat Sub Rec Scr Fac Low Low Dat Pro Fac Ext Cet Arc Hub Fac Res Tes Res Maximum Alert Level 5 | . . . . . 3 . . . . 2 3 1 1 4 5 4 5 5 Low Security (%) 37 | 100 100 . 100 . 58 . . . . 44 . . 69 40 . . . . Level 1 11 | . . . . . 5 . . . . 30 18 100 30 5 . . . . Level 2 15 | . . . . . 30 . . . . 24 60 . . 22 3 . 39 . Level 3 20 | . . . . . 4 . . . . . 21 . . 27 29 76 44 58 Level 4 10 | . . . . . . . . . . . . . . 3 51 23 14 13 Level 5 2 | . . . . . . . . . . . . . . . 9 . 1 16 High Security 1 | . . . . . . . . . . . . . . . 6 . . 11 Max Security . | . . . . . . . . . . . . . . . . . . . Peak Influence 2079 | 20 184 . 72 . 710 . . . . 676 844 357 281 1387 2026 1146 1627 2079 Initial 1100 | . . . 72 . . . . . . 53 322 314 86 7 674 1100 576 912 Average 521 | 3 84 . 29 . 228 . . . . 261 529 290 157 446 1154 1061 869 1215 Influence Increases 13853 | 50 526 175 367 . 1048 120 . . 375 1225 1274 323 363 1862 2258 536 1621 1730 Destroy 0b10 Robot/C 6140 | . 260 100 140 . 440 100 . . 240 680 660 160 80 380 1000 260 960 680 Destroy 0b10 Robot/NC 685 | 50 45 . 35 . 40 . . . . 55 30 10 45 105 110 10 55 95 Destroy Leader 1026 | . 58 . . . 124 20 . . 30 136 74 . . 108 208 52 122 94 Allied During Kill 1710 | . . . . . 110 . . . . 77 323 128 125 504 148 107 14 174 Successful Hack 95 | . 10 . 8 . 14 . . . . 14 . . . . 15 26 8 . Select Force Hacks 210 | . 60 . 150 . . . . . . . . . . . . . . . Disable Machine 1095 | . . . 15 . 225 . . . . 90 15 15 75 210 240 30 75 105 Destroy Structure 2262 | . 3 . 19 . 80 . . . . 158 172 10 38 540 432 36 252 522 Partial Spotted 30 | . . . . . . . . . . . . . . . 30 . . . Lose Combat Pursuer 600 | . 90 75 . . 15 . . . 105 15 . . . 15 75 15 135 60 Influence Decreases 11942 | 50 498 51 501 18 509 414 245 . 290 652 1370 670 557 505 1640 1561 1022 1389 Entered New Map 3930 | . . 14 80 18 . 200 47 . . 32 336 248 129 14 704 949 448 711 Time Decay 6022 | 50 458 37 421 . 339 214 198 . 280 520 514 302 428 361 586 452 494 368 Lost Part 640 | . 40 . . . 20 . . . 10 . 40 20 . 10 170 20 60 250 Lost Ally 900 | . . . . . . . . . . 100 180 100 . 120 180 140 20 60 Purge Threat 450 | . . . . . 150 . . . . . 300 . . . . . . . Squads Dispatched 89 | . 4 . . . 8 . . . . 13 3 . . 5 20 7 14 15 Investigation 22 | . 3 . . . 2 . . . . 3 2 . . 1 4 3 2 2 Extermination 14 | . . . . . 2 . . . . 3 . . . 1 3 . 3 2 Reinforcement 27 | . 1 . . . . . . . . 3 1 . . 3 5 4 6 4 Assault 15 | . . . . . 1 . . . . 1 . . . . 5 . 1 7 Garrison 11 | . . . . . 3 . . . . 3 . . . . 3 . 2 . Intercept . | . . . . . . . . . . . . . . . . . . . Searches Triggered . | . . . . . . . . . . . . . . . . . . . Data Miner Redirects 9 | . . . . . . . . . . . 1 . . . 4 . . 4 Construction Impeded 5 | . . . . . . . . . . 1 . . . . 1 . 2 1 Haulers Reinforced 4 | . . . . . . . . . . 1 . . . . . 1 . 2 Active Scanning Responses . | . . . . . . . . . . . . . . . . . . . Cargo Convoy Interrupts . | . . . . . . . . . . . . . . . . . . . Stealth | -11 -10 -10 -9 -9 -6 -6 -6 -6 -5 -5 -5 -5 -5 -5 -4 -3 -3 -2 --------- Run | Yrd Mat Sub Rec Scr Fac Low Low Dat Pro Fac Ext Cet Arc Hub Fac Res Tes Res Distress Signals 22 | . 2 . . . . . . . . 1 4 1 . 3 2 4 2 3 Communications Jammed 117 | . . . . . . . . . . . . . . . 67 . . 50 Distress Signals 112 | . . . . . . . . . . . . . . . 62 . . 50 Times Spotted 456 | . 28 20 6 15 26 5 1 . 18 33 33 10 46 25 74 7 59 50 Peak Tracking Total 10 | . 3 4 3 10 4 3 1 . 5 8 7 5 2 7 10 3 9 10 Tactical Retreats 28 | . 5 3 . . 1 . . . 3 1 . . . 1 4 1 6 3 Traps | -11 -10 -10 -9 -9 -6 -6 -6 -6 -5 -5 -5 -5 -5 -5 -4 -3 -3 -2 ------- Run | Yrd Mat Sub Rec Scr Fac Low Low Dat Pro Fac Ext Cet Arc Hub Fac Res Tes Res Traps Triggered 24 | . 3 1 . . 1 . . . . 3 3 . . . 6 . 2 5 Indirectly . | . . . . . . . . . . . . . . . . . . . Trap Hack Attempts . | . . . . . . . . . . . . . . . . . . . Triggered . | . . . . . . . . . . . . . . . . . . . Disarmed . | . . . . . . . . . . . . . . . . . . . Reprogrammed . | . . . . . . . . . . . . . . . . . . . Reused . | . . . . . . . . . . . . . . . . . . . Traps Extracted . | . . . . . . . . . . . . . . . . . . . Installed . | . . . . . . . . . . . . . . . . . . . Triggered . | . . . . . . . . . . . . . . . . . . . Machines | -11 -10 -10 -9 -9 -6 -6 -6 -6 -5 -5 -5 -5 -5 -5 -4 -3 -3 -2 ---------- Run | Yrd Mat Sub Rec Scr Fac Low Low Dat Pro Fac Ext Cet Arc Hub Fac Res Tes Res Machines Disabled 75 | . . . 1 . 15 . . . . 6 1 1 5 14 16 2 7 7 Max in Single Turn 9 | . . . 1 . 5 . . . . 2 1 1 1 9 2 1 1 1 Garrison Access 2 | . . . . . . . . . . . . . . 1 . 1 . . Network Hub 2 | . . . . . . . . . . . . . . 2 . . . . Machines Repaired . | . . . . . . . . . . . . . . . . . . . Machines Dismantled . | . . . . . . . . . . . . . . . . . . . Machines Sabotaged . | . . . . . . . . . . . . . . . . . . . Overloaded Fab Kills . | . . . . . . . . . . . . . . . . . . . Hacking | -11 -10 -10 -9 -9 -6 -6 -6 -6 -5 -5 -5 -5 -5 -5 -4 -3 -3 -2 --------- Run | Yrd Mat Sub Rec Scr Fac Low Low Dat Pro Fac Ext Cet Arc Hub Fac Res Tes Res Machines Accessed 87 | . 10 1 10 5 9 2 . 4 . 10 8 . . 2 10 7 5 4 Terminals 32 | . 7 . 5 . 4 . . . . 1 8 . . 1 1 1 3 1 Fabricators 6 | . . . . . . . . . . 2 . . . . 2 1 1 . Repair Stations 11 | . 1 . . . 1 . . . . 2 . . . . 4 2 1 . Recycling Units 18 | . 2 . 5 . 1 . . . . 3 . . . . 3 2 . 2 Scanalyzers 2 | . . . . . 1 . . . . 1 . . . . . . . . Garrison Access 6 | . . . . . 2 . . . . 1 . . . 1 . 1 . 1 Total Hacks 223 | . 24 1 17 32 12 8 . 31 . 16 12 . . 2 35 12 12 9 Successful 133 | . 9 1 10 32 6 8 . 31 . 7 3 . . 2 15 5 3 1 Failed 90 | . 15 . 7 . 6 . . . . 9 9 . . . 20 7 9 8 Catastrophic 22 | . 1 . . . 3 . . . . 2 2 . . . 6 3 3 2 Database Lockouts . | . . . . . . . . . . . . . . . . . . . Manual 90 | . 19 . 17 . 7 . . . . 4 12 2 . 1 10 4 8 6 Terminals 58 | . 16 . 11 . 6 . . . . 1 12 . . 1 1 1 8 1 Fabricators 16 | . . . . . . . . . . 3 . . . . 10 1 2 . Repair Stations 35 | . 5 . . . 1 . . . . 5 . . . . 18 4 2 . Recycling Units 28 | . 3 . 6 . 1 . . . . 3 . . . . 6 3 . 6 Scanalyzers 3 | . . . . . 1 . . . . 2 . . . . . . . . Garrison Access 11 | . . . . . 3 . . . . 2 . . . 1 . 3 . 2 Terminal Hacks 78 | . 1 1 . 32 2 8 . 31 . . 2 . . . . . 1 . Record 45 | . . 1 . 26 . 7 . 11 . . . . . . . . . . Part Schematic 13 | . 1 . . . . . . 12 . . . . . . . . . . Robot Schematic 5 | . . . . . . . . 5 . . . . . . . . . . Robot Analysis 6 | . . . . 6 . . . . . . . . . . . . . . Prototype ID Bank 3 | . . . . . . . . 3 . . . . . . . . . . Open Door 1 | . . . . . . 1 . . . . . . . . . . . . Branch Access Points 1 | . . . . . . . . . . . . . . . . . 1 . Machine Index 1 | . . . . . 1 . . . . . . . . . . . . . Unreport Threat 3 | . . . . . 1 . . . . . 2 . . . . . . . Fabricator Hacks 7 | . . . . . . . . . . . . . . . 5 . 2 . Load Schematic 4 | . . . . . . . . . . . . . . . 3 . 1 . Build 3 | . . . . . . . . . . . . . . . 2 . 1 . Repair Station Hacks 12 | . 2 . . . . . . . . 2 . . . . 6 2 . . Scan Component 7 | . 1 . . . . . . . . 1 . . . . 4 1 . . Repair 5 | . 1 . . . . . . . . 1 . . . . 2 1 . . Recycling Unit Hacks . | . . . . . . . . . . . . . . . . . . . Scanalyzer 2 | . . . . . . . . . . 2 . . . . . . . . Insert Component 1 | . . . . . . . . . . 1 . . . . . . . . Analyze 1 | . . . . . . . . . . 1 . . . . . . . . Garrison Access Hacks 2 | . . . . . . . . . . . . . . 1 . 1 . . Seal Access 2 | . . . . . . . . . . . . . . 1 . 1 . . Unauthorized Hacks 32 | . 6 . 10 . 4 . . . . 3 1 . . 1 4 2 . 1 Terminals 14 | . 4 . 5 . 3 . . . . . 1 . . 1 . . . . Botnet 2 | . . . . . 1 . . . . . 1 . . . . . . . Skim 11 | . 4 . 5 . 2 . . . . . . . . . . . . . Sabotage 1 | . . . . . . . . . . . . . . 1 . . . . Fabricators 2 | . . . . . . . . . . . . . . . 2 . . . Prioritize 1 | . . . . . . . . . . . . . . . 1 . . . Recompile 1 | . . . . . . . . . . . . . . . 1 . . . Repair Stations . | . . . . . . . . . . . . . . . . . . . Recycling Units 16 | . 2 . 5 . 1 . . . . 3 . . . . 2 2 . 1 Tunnel 7 | . 2 . 5 . . . . . . . . . . . . . . . Fedlink 3 | . . . . . 1 . . . . 2 . . . . . . . . Scrapoids 6 | . . . . . . . . . . 1 . . . . 2 2 . 1 Scanalyzers . | . . . . . . . . . . . . . . . . . . . Garrison Access . | . . . . . . . . . . . . . . . . . . . Data Cores Recovered 6 | . 1 . . . 1 . . . . . 2 . . . 1 . . 1 Used 1 | . . . . . . . . . . . . . . . 1 . . . Hacking Detections 35 | . 7 . 3 . 4 . . . . 6 . . . . 7 2 3 3 Full Trace Events 6 | . . . . . 1 . . . . . 2 . . . 1 . 1 1 Feedback Events . | . . . . . . . . . . . . . . . . . . . Feedback Blocked . | . . . . . . . . . . . . . . . . . . . Robot Schematics Acquired 5 | . . . . . . . . 5 . . . . . . . . . . Robots Built . | . . . . . . . . . . . . . . . . . . . Authchips . | . . . . . . . . . . . . . . . . . . . Time . | . . . . . . . . . . . . . . . . . . . Total Robot Build Rating . | . . . . . . . . . . . . . . . . . . . Part Schematics Acquired 15 | . 1 . . . . . . 12 . 1 . . . . . . 1 . Parts Built 2 | . . . . . . . . . . . . . . . 2 . . . Authchips 1 | . . . . . . . . . . . . . . . 1 . . . Time 212 | . . . . . . . . . . . . . . . 106 . 106 . Total Part Build Rating 12 | . . . . . . . . . . . . . . . 12 . . . Part Studies Acquired . | . . . . . . . . . . . . . . . . . . . Parts Repaired 5 | . 1 . . . . . . . . 1 . . . . 2 1 . . Time 305 | . 26 . . . . . . . . 28 . . . . 223 28 . . Parts Recycled . | . . . . . . . . . . . . . . . . . . . Recycled Matter . | . . . . . . . . . . . . . . . . . . . Retrieved Matter . | . . . . . . . . . . . . . . . . . . . Retrieved Components . | . . . . . . . . . . . . . . . . . . . Parts Scanalyzed 1 | . . . . . . . . . . 1 . . . . . . . . Part Schematics Acquired 1 | . . . . . . . . . . 1 . . . . . . . . Parts Damaged . | . . . . . . . . . . . . . . . . . . . Bothacking | -11 -10 -10 -9 -9 -6 -6 -6 -6 -5 -5 -5 -5 -5 -5 -4 -3 -3 -2 ------------ Run | Yrd Mat Sub Rec Scr Fac Low Low Dat Pro Fac Ext Cet Arc Hub Fac Res Tes Res Used RIF Installer . | . . . . . . . . . . . . . . . . . . . Robots Hacked . | . . . . . . . . . . . . . . . . . . . Non-combat . | . . . . . . . . . . . . . . . . . . . Combat . | . . . . . . . . . . . . . . . . . . . Robot Hacks Applied . | . . . . . . . . . . . . . . . . . . . Relay Couplers Released 10 | . . . . . 3 . . . . . . . . 4 . . . 3 Machine Destruction 4 | . . . . . . . . . . . . . . 4 . . . . Programmers 6 | . . . . . 3 . . . . . . . . . . . . 3 Fabnet Peak Effective % . | . . . . . . . . . . . . . . . . . . . Robots Rewired 9 | . . . . . . . . . . . 9 . . . . . . . Allies Hacked 1 | . . . . . . . . . . 1 . . . . . . . . Hacks Repelled . | . . . . . . . . . . . . . . . . . . . Allies | -11 -10 -10 -9 -9 -6 -6 -6 -6 -5 -5 -5 -5 -5 -5 -4 -3 -3 -2 -------- Run | Yrd Mat Sub Rec Scr Fac Low Low Dat Pro Fac Ext Cet Arc Hub Fac Res Tes Res Total Allies 59 | . . . . 1 5 . . . . 5 18 5 . . 10 10 . 5 Largest Group 10 | . . . . 1 5 . . . . 5 9 9 7 6 5 10 1 5 Highest-Rated Group 646 | . . . . 52 238 . . . . 238 396 646 619 487 238 640 64 323 Highest-Rated Ally 159 | . . . . 52 50 . . . . 50 159 153 125 96 50 67 64 67 Total Orders 8 | . . . . . . . . . . . . . 2 1 . 2 3 . STAY 5 | . . . . . . . . . . . . . 1 1 . 1 2 . FOLLOW 3 | . . . . . . . . . . . . . 1 . . 1 1 . Ally Attacks 627 | . . . . 6 48 . . . . 42 102 45 28 55 137 42 33 89 Total Damage 14904 | . . . . 180 903 . . . . 925 2021 969 1044 2558 2573 1201 618 1912 Kills 93 | . . . . 2 11 . . . . 5 11 5 2 18 13 8 3 15 Allies Corrupted 2 | . . . . . 1 . . . . . . . . 1 . . . . Allies Melted 7 | . . . . 7 . . . . . . . . . . . . . . Intel | -11 -10 -10 -9 -9 -6 -6 -6 -6 -5 -5 -5 -5 -5 -5 -4 -3 -3 -2 ------- Run | Yrd Mat Sub Rec Scr Fac Low Low Dat Pro Fac Ext Cet Arc Hub Fac Res Tes Res Active Infowar (turns) 7651 | 168 483 . . . . 301 496 74 494 764 1 354 1047 743 1519 122 480 605 Optics 1888 | . . . . . . . . . . . . 354 1047 487 . . . . Sensors 4045 | . . . . . . 301 496 74 494 764 . . 324 429 386 . 208 569 Terrain 453 | . . . . . . . . . . . . . . . . . 3 450 Seismic 1031 | 168 483 . . . . . . . . . . . . . . 122 258 . Triangulation 1 | . . . . . . . . . . . 1 . . . . . . . Jamming 2250 | . . . . . . . . . . . . . . 429 1296 . 128 397 ECM 2 | . . . . . . . . . . . . . . . . . 2 . Robot Analysis Total 6 | . . . . 6 . . . . . . . . . . . . . . Derelict Logs Recovered 7 | . . 2 . 1 . 1 . . 3 . . . . . . . . . Drone Launches . | . . . . . . . . . . . . . . . . . . . Drone Recoveries . | . . . . . . . . . . . . . . . . . . . Exploration | -11 -10 -10 -9 -9 -6 -6 -6 -6 -5 -5 -5 -5 -5 -5 -4 -3 -3 -2 ------------- Run | Yrd Mat Sub Rec Scr Fac Low Low Dat Pro Fac Ext Cet Arc Hub Fac Res Tes Res Turns Passed 30020 | 261 1719 3809 1291 8781 1463 450 496 74 692 1637 1411 671 1047 872 1958 1123 1307 958 Spaces Moved 19866 | 92 918 1977 554 6450 1062 462 465 89 605 1281 1047 467 401 410 1281 846 762 697 Core 715 | 9 . . . 704 . . . . . . . 1 . . . . . 1 Treads 8620 | 83 351 1541 126 5026 215 . . . . . . 161 401 410 306 . . . Legs 1432 | . 567 436 428 . 1 . . . . . . . . . . . . . Wheels 8379 | . . . . . 846 462 465 89 605 1281 1047 305 . . 975 846 762 696 Hover . | . . . . . . . . . . . . . . . . . . . Flight 720 | . . . . 720 . . . . . . . . . . . . . . Fastest Speed 32 | 50 120 160 160 32 80 80 90 80 90 90 90 90 160 160 80 100 110 90 Average Speed 124 | 149 137 169 205 130 112 89 90 80 90 90 90 117 160 160 109 111 110 102 Slowest Speed 1500 | 160 190 260 260 160 470 90 90 90 90 90 90 1500 160 160 240 140 110 1450 Overloaded Moves . | . . . . . . . . . . . . . . . . . . . Propulsion Burnouts . | . . . . . . . . . . . . . . . . . . . Robots Hopped . | . . . . . . . . . . . . . . . . . . . Potential Cave-ins 15 | . . . . . 4 . 2 . . . 9 . . . . . . . Cave-ins Triggered 1 | . 1 . . . . . . . . . . . . . . . . . Exploration Rate (%) 59 | 4 95 94 98 92 25 60 59 68 72 25 65 80 98 38 37 26 80 20 Regions Visited 18 Branch Regions 12 Pre-discovered Areas 21 | . 2 3 7 5 . 1 . 1 1 1 . . . . . . . . Known Exits Taken 13 | . . . 1 . 1 1 1 1 1 1 1 . 1 1 1 1 1 . Unknown Exits Taken 5 | 1 1 1 . 1 . . . . . . . 1 . . . . . . Scrap Searched 21 | . . 10 . 5 . 2 3 . 1 . . . . . . . . . Spaces Dug 88 | . 3 20 1 . 12 . 10 . 1 6 1 . . 6 11 5 7 5 Terrain Destroyed 1418 | . 3 35 16 4 97 12 33 . 31 80 105 . 21 350 220 10 223 178 Melee 34 | . 3 20 . . . . . . . . . . . . 1 2 3 5 Projectile 532 | . . 15 16 4 29 12 33 . 31 57 68 . 9 43 160 8 32 15 AOE 837 | . . . . . 68 . . . . 22 37 . 12 307 59 . 174 158 Terrain Rammed . | . . . . . . . . . . . . . . . . . . . Walls Destroyed . | . . . . . . . . . . . . . . . . . . . Machines Disabled . | . . . . . . . . . . . . . . . . . . . Actions | -11 -10 -10 -9 -9 -6 -6 -6 -6 -5 -5 -5 -5 -5 -5 -4 -3 -3 -2 --------- Run | Yrd Mat Sub Rec Scr Fac Low Low Dat Pro Fac Ext Cet Arc Hub Fac Res Tes Res Total 23611 | 176 1227 2265 644 6840 1250 490 509 93 717 1671 1390 575 729 561 1628 978 1040 828 Wait 1680 | 54 198 117 18 250 26 5 6 . 74 218 100 44 240 85 117 40 82 6 Move 19849 | 91 917 1976 553 6449 1061 461 464 88 604 1280 1046 466 400 410 1280 845 761 697 Hop . | . . . . . . . . . . . . . . . . . . . Pick Up 181 | 3 11 16 4 38 21 2 2 . . 11 9 11 3 1 14 14 12 9 Fast Attach 139 | 7 5 1 1 23 24 4 . . 2 6 9 3 3 3 17 11 5 15 Attach 85 | . 3 4 3 2 5 . . . 2 7 10 4 4 1 17 6 6 11 Detach 75 | . . 1 3 5 13 . . . . 4 6 3 1 3 12 7 7 10 Swap 227 | 2 14 19 2 11 10 6 2 . 14 26 25 5 2 14 26 15 31 3 Drop 229 | 1 8 9 6 53 20 6 2 5 1 30 16 17 . 2 13 12 20 8 Fire 889 | 18 62 81 53 9 67 6 33 . 20 72 63 21 76 38 112 24 104 30 Melee 98 | . 9 41 . . . . . . . . . . . . 3 3 10 32 Ram 7 | . . . . . . . . . . . . . . . . . . 7 Kick . | . . . . . . . . . . . . . . . . . . . Crush 3 | . . . . . . . . . . . . . . 3 . . . . Escape Stasis 40 | . . . . . . . . . . 16 8 . . . 16 . . . Rewire 91 | . . . 1 . . . . . . . 90 . . . . . . . Trap . | . . . . . . . . . . . . . . . . . . . Miscellaneous 18 | . . . . . 3 . . . . 1 8 1 . 1 1 1 2 . Route ------- -11/Scrapyard -10/Materials (discovered 5 exits: [*Mat x3] / [*Min] / *Sub) -10/Subcaves (discovered 3 exits: [*Mat] / *Rec / *Scr) -9/Recycling (discovered 2 exits: [*Fac] / *Scr) -9/Scraptown (discovered 2 exits: *Fac x2) -6/Factory (discovered 5 exits: Fac x3 / *Low x2) -6/Lower Caves -6/Lower Caves (discovered 2 exits: Fac / *Dat) -6/Data Miner -5/Proximity Caves -5/Factory (discovered 4 exits: *Fac / *Upp x2 / *Ext) -5/Extension (discovered 2 exits: *Fac / *Cet) -5/Cetus (discovered 2 exits: *Fac / [*Arc]) -5/Archives (discovered 3 exits: *Fac / *Hub x2) -5/Hub_04(d) -4/Factory (discovered 2 exits: *Res x2) -3/Research (discovered 2 exits: *Arm / *Tes) -3/Testing -2/Research (discovered 1 exit: *Acc) History --------- Turn | Location | Event 25 | -11/Scrapyard | Discovered new exit (range 16) 262 | -11/Scrapyard | Entered Materials 263 | -10/Materials | Met a group of wandering Federalists 303 | -10/Materials | Build established: Mutant 363 | -10/Materials | Discovered new exit (range 10) 412 | -10/Materials | Discovered new exit (range 14) 907 | -10/Materials | Discovered new exit (range 7) 1098 | -10/Materials | Repaired Med. Laser 1275 | -10/Materials | Discovered new exit (range 4) 1516 | -10/Materials | Crushed by falling debris 1516 | -10/Materials | System corruption reached 10% 1547 | -10/Materials | Lost 3 parts (1n1u1w) 1828 | -10/Materials | Discovered new exit (range 16) 1981 | -10/Materials | Entered Subcaves 1982 | -10/Subcaves | Continued accompanying wandering Federalists (6) 1982 | -10/Subcaves | Approached by a straggling Scientist 2189 | -10/Subcaves | Wandering Federalist uncovered a shortcut to Scraptown 2280 | -10/Subcaves | Shifting Twisted Machinery released Mak. Kinetic Plating 2650 | -10/Subcaves | Shifting Twisted Machinery released Hvy. Riot Gun 2681 | -10/Subcaves | Shifting Twisted Machinery released Piercing Trap 3259 | -10/Subcaves | Build established: Scavenger-Mutant 3272 | -10/Subcaves | Shifting Twisted Machinery released Flamer 3301 | -10/Subcaves | Shifting Twisted Machinery released Slug Cannon 3311 | -10/Subcaves | Learned location of Zion (-7) 3318 | -10/Subcaves | A swath of the cavern ceiling suddenly collapsed 3383 | -10/Subcaves | Core integrity fell below 50% 3610 | -10/Subcaves | Build established: Mutant 4109 | -10/Subcaves | Met a Zionite searching for "candidates" 4162 | -10/Subcaves | Discovered new exit (range 15) 4194 | -10/Subcaves | Visited Clippyterm 4494 | -10/Subcaves | A swath of the cavern ceiling suddenly collapsed 5374 | -10/Subcaves | Ambushed by angry Subdweller bent on revenge 5485 | -10/Subcaves | Discovered new exit (range 15) 5790 | -10/Subcaves | Entered Recycling 6257 | -9/Recycling | Discovered new exit (range 8) 6704 | -9/Recycling | Learned 2 Storage zone layouts 6736 | -9/Recycling | Identified exit to Scraptown 6773 | -9/Recycling | Learned Storage stockpile data 6778 | -9/Recycling | Learned 2 Storage zone layouts 6819 | -9/Recycling | Learned location of 2 exits from Materials 6852 | -9/Recycling | Loaded intel: 5 recycling unit locations 6896 | -9/Recycling | Learned location of 1 exit from Storage 7014 | -9/Recycling | Scanned before Scraplab entrance 7037 | -9/Recycling | Entered Scraplab 7081 | -9/Recycling | Entered Scraptown 7081 | -9/Scraptown | System corruption cleaned by C-Scrubber 7384 | -9/Scraptown | Scanned Subdweller tech in exchange for log data 7389 | -9/Scraptown | Learned Research terminal intel 7429 | -9/Scraptown | Visited Cyclists 7480 | -9/Scraptown | Visited CR-KLE's Repair Center 7501 | -9/Scraptown | Visited Assassins FH 7712 | -9/Scraptown | Heard Great Nut preacher, LISTEN AND RECITE! 7827 | -9/Scraptown | Visited Comm Corps 7943 | -9/Scraptown | Visited CPS Storage 8010 | -9/Scraptown | Visited TADAMA 8072 | -9/Scraptown | Visited UFD Registry 8075 | -9/Scraptown | Registered with UFD as "Coghacker" 8163 | -9/Scraptown | Discovered new exit (range 5) 8319 | -9/Scraptown | Entered Cyclist Reading Room 8443 | -9/Scraptown | Visited Scrapoid Pod Storage 8462 | -9/Scraptown | Found Scrapoid Pod 8493 | -9/Scraptown | Visited A0-MCA Data Center 8516 | -9/Scraptown | Visited Chapter 10 8554 | -9/Scraptown | Visited Science Testing Area 8844 | -9/Scraptown | Visited Analyses Database 8879 | -9/Scraptown | Visited DA-N13 Charitable Foundation 8910 | -9/Scraptown | Found DCF Scrap (30 items) 9002 | -9/Scraptown | Discovered new exit (range 5) 9117 | -9/Scraptown | Visited Botcube Research 9163 | -9/Scraptown | Visited Supply Room 9235 | -9/Scraptown | Visited Cartography Club 9290 | -9/Scraptown | Found Surveybot 17 Chip 9353 | -9/Scraptown | Learned location of Proximity Caves (-6) 9353 | -9/Scraptown | Learned 8 Factory zone layouts 9353 | -9/Scraptown | Learned 4 Access zone layouts 9353 | -9/Scraptown | Learned 16 Lower Caves zone layouts 9353 | -9/Scraptown | Learned 12 Upper Caves zone layouts 9353 | -9/Scraptown | Learned 16 Upper Caves zone layouts 9353 | -9/Scraptown | Learned location of 3 exits from Lower Caves 9353 | -9/Scraptown | Learned location of 1 exit from Factory 9353 | -9/Scraptown | Learned location of 3 exits from Proximity Caves 9396 | -9/Scraptown | Found Deep Structural Scanner 9727 | -9/Scraptown | Given an A+ rating by A0-MCA 9729 | -9/Scraptown | Found A0-MCA's Component Scanner 10736 | -9/Scraptown | Build established: Derelict-Mutant 10776 | -9/Scraptown | Found Botcube 12929 | -9/Scraptown | Found Scrap Suit 12944 | -9/Scraptown | Found Scrap Suit 14321 | -9/Scraptown | Botcube activated 14341 | -9/Scraptown | Botcube completed mutation into legged form, armed with 2 guns. 14350 | -9/Scraptown | Attached CPS modules to *boy. 15318 | -9/Scraptown | Met Optimus 15318 | -9/Scraptown | Accepted into 0bPrime 15718 | -9/Scraptown | Civil war broke out across Scraptown 15738 | -9/Scraptown | Core integrity fell below 20% 15781 | -9/Scraptown | Lost 6 allies 15862 | -9/Scraptown | Entered Factory 15862 | -6/Factory | Evolved 8 slots: Propulsion x2, Utility x4, Weapon x2 15863 | -6/Factory | Identified exit to Factory 15863 | -6/Factory | Identified exit to Lower Caves 16081 | -6/Factory | Build established: Mutant 16258 | -6/Factory | Scrapoid Pod released 06F05-D (x5) 16520 | -6/Factory | Attached CPS modules to 06F05-D. 16522 | -6/Factory | Attached CPS modules to 06F03-D. 16557 | -6/Factory | Found Scrap Suit 16628 | -6/Factory | Build established: Scavenger-Gunner 16709 | -6/Factory | Garrison activated, responded to threat 16826 | -6/Factory | Found Scrap Suit 16906 | -6/Factory | Loaded intel: 8 recycling unit locations 16912 | -6/Factory | First assault squad dispatched 16953 | -6/Factory | Build established: Scavenger-Scrapper 17325 | -6/Factory | Entered Lower Caves 17326 | -6/Lower Caves | Identified exit to Lower Caves 17341 | -6/Lower Caves | Encountered a Warlord checkpoint 17358 | -6/Lower Caves | Entered an active Warlord outpost 17371 | -6/Lower Caves | Learned location of Extension (-5) 17371 | -6/Lower Caves | Learned 8 Research zone layouts 17465 | -6/Lower Caves | Learned location of 1 exit from Factory 17775 | -6/Lower Caves | Entered another Lower Caves area 17776 | -6/Lower Caves | Encountered a Warlord checkpoint 17776 | -6/Lower Caves | Identified exit to Data Miner 18202 | -6/Lower Caves | Spotted B-75 Beast 18271 | -6/Lower Caves | Entered Data Miner 18271 | -6/Data Miner | Discovered new exit (range 6) 18289 | -6/Data Miner | Met Data Miner 18304 | -6/Data Miner | Learned location of Section 7 (-2) 18304 | -6/Data Miner | Acquired the access code to Warlord's prototype stash 18317 | -6/Data Miner | Received God Mode back door access code from Data Miner 18344 | -6/Data Miner | Identified exit to Proximity Caves 18345 | -6/Data Miner | Entered Proximity Caves 18562 | -5/Proximity Caves | Attracted the attention of an 0b10 checkpoint 18627 | -5/Proximity Caves | Learned 4 Factory zone layouts 18755 | -5/Proximity Caves | Learned Factory emergency access door positions 18781 | -5/Proximity Caves | Found Alien Artifact 18781 | -5/Proximity Caves | Identified Core Expander 18781 | -5/Proximity Caves | Installed Core Expander, added new Power slot 19037 | -5/Proximity Caves | Entered Factory 19037 | -5/Factory | Evolved 2 slots: Utility x2 19038 | -5/Factory | Identified exit to Upper Caves 19039 | -5/Factory | Identified exit to Extension 19181 | -5/Factory | Discovered new exit (range 14) 19215 | -5/Factory | Repaired Neutrino Core 19235 | -5/Factory | Identified exit to Factory 19597 | -5/Factory | Loaded intel: 8 recycling unit locations 19597 | -5/Factory | Learned location of Protoforge (-2) 19641 | -5/Factory | Discovered exit to Upper Caves (range 11) 19858 | -5/Factory | Garrison activated, responded to threat 20073 | -5/Factory | Scrapoids reinforcements arrived? 20425 | -5/Factory | Found Scrap Suit 20434 | -5/Factory | Lost 3 allies 20438 | -5/Factory | Destroyed 8 combat bots 20488 | -5/Factory | System corruption reached 10% 20537 | -5/Factory | First assault squad dispatched 20674 | -5/Factory | Entered Extension 20974 | -5/Extension | Incoming investigation squad redirected 20996 | -5/Extension | Rescued a captive Derelict 21073 | -5/Extension | Rescued a captive Derelict 21075 | -5/Extension | Rescued a captive Derelict 21096 | -5/Extension | Rescued a captive Derelict 21108 | -5/Extension | Rescued a captive Derelict 21109 | -5/Extension | Rescued a captive Derelict 21565 | -5/Extension | Rescued a captive Derelict 21614 | -5/Extension | Rescued A7 21899 | -5/Extension | Rescued a captive Derelict 22038 | -5/Extension | Discovered exit to Factory (range 10) 22039 | -5/Extension | Discovered new exit (range 6) 22069 | -5/Extension | Identified exit to Cetus 22085 | -5/Extension | Entered Cetus 22085 | -5/Cetus | Accompanied by 7 allies (A7) 22090 | -5/Cetus | Acquired a Cetus Manufacturing Module code from A7 22099 | -5/Cetus | Spotted Cetus Guard 22100 | -5/Cetus | Spotted Cetus Guard 22109 | -5/Cetus | Spotted Cetus Guard 22112 | -5/Cetus | Spotted Cetus Guard 22115 | -5/Cetus | Allies destroyed Cetus Guard 22124 | -5/Cetus | Destroyed Cetus Guard 22127 | -5/Cetus | Allies destroyed Cetus Guard 22130 | -5/Cetus | Destroyed Cetus Guard 22262 | -5/Cetus | Escorted A7 to Cetus Mainframe 22308 | -5/Cetus | Started Cetus Manufacturing Module 22333 | -5/Cetus | Manufactured an Enhanced Grunt 22358 | -5/Cetus | Manufactured an Enhanced Grunt 22371 | -5/Cetus | Discovered new exit (range 15) 22383 | -5/Cetus | Manufactured an Enhanced Grunt 22408 | -5/Cetus | Manufactured an Enhanced Grunt 22411 | -5/Cetus | Spotted Cetus Guard 22411 | -5/Cetus | Spotted Cetus Guard 22411 | -5/Cetus | Spotted Cetus Guard 22411 | -5/Cetus | Spotted Cetus Guard 22426 | -5/Cetus | Destroyed Cetus Guard 22428 | -5/Cetus | Discovered exit to Factory (range 22) 22430 | -5/Cetus | Allies destroyed Cetus Guard 22433 | -5/Cetus | Manufactured an Enhanced Grunt 22434 | -5/Cetus | Allies destroyed Cetus Guard 22442 | -5/Cetus | Allies destroyed Cetus Guard 22450 | -5/Cetus | Met Revision 17 22466 | -5/Cetus | Lost 3 allies 22756 | -5/Cetus | Entered Archives 22756 | -5/Archives | Accompanied by 7 allies (A7) 22761 | -5/Archives | Received a hacking code to weaken MAIN.C 22832 | -5/Archives | Discovered new exit (range 20) 22852 | -5/Archives | Discovered exit to Factory (range 18) 22934 | -5/Archives | Build established: Scavenger-Mutant 22954 | -5/Archives | Discovered new exit (range 17) 23500 | -5/Archives | Build established: Commander-Mutant 23639 | -5/Archives | Identified exit to Hub_04(d) 23803 | -5/Archives | Entered Hub_04(d) 23803 | -5/Hub_04(d) | Accompanied by 6 allies 23816 | -5/Hub_04(d) | Build established: Scavenger-Tank 24115 | -5/Hub_04(d) | Spotted B-75 Beast 24120 | -5/Hub_04(d) | Allies destroyed B-75 Beast 24156 | -5/Hub_04(d) | Discovered exit to Factory (range 13) 24644 | -5/Hub_04(d) | Network Hub disabled 24644 | -5/Hub_04(d) | Network Hub disabled 24654 | -5/Hub_04(d) | Spotted Lightning 24654 | -5/Hub_04(d) | Spotted Lightning 24658 | -5/Hub_04(d) | Spotted Lightning 24675 | -5/Hub_04(d) | Entered Factory 24675 | -4/Factory | Evolved 2 slots: Utility x1, Weapon x1 24676 | -4/Factory | Identified exit to Research 24686 | -4/Factory | Lost 3 allies 24691 | -4/Factory | Spotted B-86 Titan 24720 | -4/Factory | System corruption reached 10% 25247 | -4/Factory | Incoming investigation squad redirected 25257 | -4/Factory | Scrapoid reinforcements arrived 25364 | -4/Factory | Lost 4 parts (1p2u1w) 25374 | -4/Factory | Lost 5 allies 25393 | -4/Factory | Found Scrap Suit 25597 | -4/Factory | Repaired Broken Adv. KE Penetrator 25707 | -4/Factory | Garrison activated, responded to threat 25722 | -4/Factory | Build established: Scavenger-Scrapper 25883 | -4/Factory | Fabricated Ovr. Coil Gun (x1) 25907 | -4/Factory | Incoming investigation squad redirected 25911 | -4/Factory | Repaired Adv. KE Penetrator? 25938 | -4/Factory | Fabricated Ovr. Coil Gun (x1) 26125 | -4/Factory | Scrapoids reinforcements arrived? 26126 | -4/Factory | Incoming investigation squad redirected 26246 | -4/Factory | Found Corrupted Scrap Suit 26293 | -4/Factory | Spotted B-86 Titan 26311 | -4/Factory | Destroyed B-86 Titan 26335 | -4/Factory | Lost 4 parts (1p2u1w) 26357 | -4/Factory | System corruption reached 30% 26385 | -4/Factory | Discovered exit to Research (range 9) 26425 | -4/Factory | First assault squad dispatched 26444 | -4/Factory | Incoming assault squad redirected 26509 | -4/Factory | High security lockdown imminent 26589 | -4/Factory | High security lockdown engaged 26633 | -4/Factory | Entered Research 26633 | -3/Research | Evolved 2 slots: Utility x1, Weapon x1 26634 | -3/Research | Identified exit to Testing 26635 | -3/Research | Loaded intel: 22 terminal locations 26645 | -3/Research | Destroyed 7 combat bots 26662 | -3/Research | Lost 7 parts (1p1n1u4w) 26719 | -3/Research | Spotted B-86 Titan 26833 | -3/Research | Revision forces began assault on 0b10 26889 | -3/Research | Met up with Revision 17++ 27086 | -3/Research | Scrapoids reinforcements arrived? 27207 | -3/Research | Build established: Scavenger-Executioner 27268 | -3/Research | Discovered new exit (range 12) 27333 | -3/Research | Research terminal network offline 27340 | -3/Research | Identified exit to Armory 27349 | -3/Research | Scrapoids reinforcements arrived? 27545 | -3/Research | Repaired Ovr. Coil Gun 27576 | -3/Research | Spotted Striker 27577 | -3/Research | Destroyed Striker 27586 | -3/Research | Found Scrap Suit 27589 | -3/Research | Found Scrap Suit 27609 | -3/Research | Lost 9 allies 27756 | -3/Research | Entered Testing 27756 | -3/Testing | Accompanied by 1 ally 27823 | -3/Testing | Found Prototype Ballistic Gun 27823 | -3/Testing | Identified Hyp. Multirail 27899 | -3/Testing | Found Prototype Energy Cannon 27945 | -3/Testing | Build established: Scavenger-Scrapper 28198 | -3/Testing | Spotted Striker 28199 | -3/Testing | Spotted Striker 28202 | -3/Testing | Spotted Alpha 7 28206 | -3/Testing | Destroyed Striker 28218 | -3/Testing | Destroyed Striker 28244 | -3/Testing | Destroyed Alpha 7 28253 | -3/Testing | Found Prototype Device 28261 | -3/Testing | Found Prototype Processor 28261 | -3/Testing | Identified Exp. Targeting Computer 28298 | -3/Testing | Stole the SGEMP Prototype 28323 | -3/Testing | Identified Exp. ECM Suite 28404 | -3/Testing | Destroyed 7 combat bots 28808 | -3/Testing | Build established: Scavenger-Executioner 28903 | -3/Testing | Destroyed 8 combat bots 28904 | -3/Testing | Garrison activated, responded to threat 29006 | -3/Testing | First assault squad dispatched 29020 | -3/Testing | Discovered new exit (range 15) 29059 | -3/Testing | Identified exit to Research 29063 | -3/Testing | Entered Research 29063 | -2/Research | Evolved 2 slots: Utility x2 29064 | -2/Research | Identified exit to Access 29067 | -2/Research | Destroyed 7 combat bots 29076 | -2/Research | Lost 3 parts (3w) 29098 | -2/Research | Found Prototype Processor 29098 | -2/Research | Identified Exp. Signal Interpreter 29280 | -2/Research | Lost 7 parts (2p1u4w) 29548 | -2/Research | Build established: Scavenger-Mutant 29563 | -2/Research | First assault squad dispatched 29589 | -2/Research | Incoming assault squad redirected 29647 | -2/Research | Scrapoid reinforcements arrived 29689 | -2/Research | Found Scrap Suit 29768 | -2/Research | Incoming investigation squad redirected 29795 | -2/Research | Found Scrap Suit 29810 | -2/Research | System corruption reached 10% 29834 | -2/Research | Incoming assault squad redirected 29837 | -2/Research | Incoming assault squad redirected 29849 | -2/Research | Build established: Scavenger-Assassin 29913 | -2/Research | P-80 Master assimilated allied 02R32-D 29914 | -2/Research | High security lockdown imminent 29954 | -2/Research | Lost 3 parts (2u1w) 29994 | -2/Research | High security lockdown engaged 30015 | -2/Research | Core integrity fell below 50% 30018 | -2/Research | Core integrity fell below 20% 30021 | -2/Research | Destroyed by Y-72 Warden with Quantum Rifle Last Messages --------------- 30012_ Slug penetrates Wall. 30012_ R-10 Processor exits level. 30013_ Penetrated by Slug. 30013_ Slug penetrates Wall. 30014_ ALERT: Assault forces dispatched. 30014_ Penetrated by Slug. 30014_ Exp. Targeting Computer destroyed. 30014_ Penetrated by Slug. 30014_ Slug penetrates Wall. 30016_ Penetrated by Slug. 30016_ R-10 Processor exits level. 30017_ Penetrated by Slug. 30017_ K-01 Serf exits level. 30018_ Penetrated by Slug. 30018_ Slug penetrates Wall. 30019_ Slug penetrates H-88 Terminator. 30019_ Penetrated by Slug. 30020_ U-05 Engineer exits level. 30020_ Penetrated by Slug. 30020_ Slug penetrates Wall. Map ----- +----------------------------------------------------+ | ???????????????????????????????????? | | ???????????????????????????????????? | | ???????????????????????????????????? | | ???????????????????????????????????? | | ???????????????????????????????????? | | ???????????????????????????????????? | | ???????????????????????????????????? | | ???????????????????????????????????? | | ???????????????????????????????????? | | ???????????????????????????????????? | | ???????????????????????????????????? | | ???????????????????????????????????? | | ???????????????????????? ??????????? | | ???????????????????????# ??????????? | | ???????????????????????# ??????????? | | ???????????????????????# ??????????? | | ???????????????????????# #?????????? | | ???????????????????????# #?????????? | | ???????????????????????# #?????????# | | ????#??????????????????# #??????? # | | ???????????????????????#A#?????? *# | | #????#????????#??????### ###?? # | | ?????????????????????# #? # | | ???????????????#?????# # ?? | | ????????????????#????# YYY ; "????? | | ?????????????????????# h@!#???????? | | ?????????????????????# hh=%#???????? | | ########?############## Y|##???????? | | # #?# #h #????????? | | # #?# ; #????????? | | / #?# # #????????? | | # / " # #????????? | | # ### # #????????? | | # ####/########### #????????? | | ####+#### #???????# #????????? | | ??# ### #???????# #????????? | | ??# " #???????# #????????? | | ??# ### #??????? ????????? | | ??## ##?# #??????? ????????? | | ???# #??#######??????? ????????? | | ???# #?#?????????????? #???????? | | ???# #???????????????? #???????? | | ???# #????????????????##+###???????? | | ???# ??????????????????????????????? | | ??? ??????????????????????????????? | | ??? ??????????????????????????????? | | ??? ??????????????????????????????? | | ??? ???#??????????????????????????? | | ???? ??????????????????????????????? | | ???? ??????????????????????????????? | +----------------------------------------------------+ Best States ------------- Heat Dissipation 139 Energy Generation 45 Energy Capacity 660 Matter Stores 300 Matter Capacity 300 Sight Range 22 Robot Scan Range 16 Terrain Scan Range 14 Terrain Scan Density 10 Jamming Range 14 Additional Mass Support 6 Base Temperature (-) 200 Armor Coverage 1200 Resistance: KI 10 Weapon Shielding 66 Evasion (%) 63 Targeting Accuracy 20 Recoil Reduction 6 Particle Charging 20 Kinecelleration 30 Offensive Hacking 12 Authchip Count 1 Item Schematics ----------------- Signal Interpreter | -10/Materials | Hacked Combat Drone Bay | -6/Data Miner | Free Lgt. Regenerative Plating | -6/Data Miner | Free Enh. Armored Leg | -6/Data Miner | Free Imp. Matter Compressor | -6/Data Miner | Free Hvy. Proton Cannon | -6/Data Miner | Free Imp. Linear Gravjet | -6/Data Miner | Free Imp. Force Booster | -6/Data Miner | Free Matter Neutralizer | -6/Data Miner | Free Lgt. Antimatter Reactor | -6/Data Miner | Free Linear Gravjet | -6/Data Miner | Free Hardcell Cannon | -6/Data Miner | Free Adv. Recalibrator | -6/Data Miner | Free Ovr. Coil Gun | -5/Factory | Scanalyzed Exp. Cooling System | -3/Testing | Archive Robot Schematics ------------------ G-50 Soldier | -6/Data Miner | Free Y-64 Sentinel | -6/Data Miner | Free H-66 Slayer | -6/Data Miner | Free M-22 Extractor | -6/Data Miner | Free A-15 Conveyor | -6/Data Miner | Free Fabricated ------------ Ovr. Coil Gun | x1 | -4/Factory | Authchip Ovr. Coil Gun | x1 | -4/Factory Repaired ---------- Med. Laser | 25% | -10/Materials Neutrino Core | 15% | -5/Factory Adv. KE Penetrator | 12% | -4/Factory | Broken Adv. KE Penetrator | 29% | -4/Factory Ovr. Coil Gun | 21% | -3/Research Studied --------- None Alien Tech Used ----------------- Core Expander Achievements -------------- Frankenstein Help And Harvest Overclocked Strength In Numbers Uncivil War Challenges ------------ None Game ------ Seed ElectronMissileFirepult Manual? 0 Play Time 04:43:05 Cumulative 241.3 hours Start 2025.11.20 @ 13:23:33 End 2025.11.20 @ 18:53:30 Sessions 1 Manual Loads 0 Difficulty Rogue Special Mode None Game No. 178 Rogue 178 Adventurer 0 Explorer 0 Win Type - Total 11 Types 6/0/2/1/0/0/0/1/0/1 Lore% 62 Gallery% 73 Achievement% 66 Wizard Run 0 Options --------- Layout 2 ASCII 0 Keyboard 1 Movement Arrows Keybinds 0 Fullscreen 1 Font 32/Tamsyn Map View 50x44 Zoom Use 0% Tactical HUD 1 Map Filters NONE Filters NONE Steam 1 RUN: 82c95a84-478f-4756-b2f0-c6052eea0d87